bitfinex-derivatives/quotes_SOLF0:USTF0_20241211
["timestamp","ask_amount","ask_price","bid_price","bid_amount"]
[1733880583899,2.3493,212.69,212.61,3.7411]
[1733880584105,2.3493,212.69,212.61,1.3911]
[1733880584300,29.84780404,212.74,212.62,5.59156657]
[1733880584498,29.84780404,212.78,212.62,5.59156657]
[1733880584699,29.84780404,212.78,212.63,1.3628]
[1733880585500,29.84780404,212.78,212.67,2.3495]
[1733880585501,2.3489,212.73,212.67,2.3495]
[1733880585704,29.84780404,212.78,212.67,2.3495]
[1733880586304,29.84780404,212.78,212.7,2.3491]
[1733880586502,29.84780404,212.78,212.63,1.3628]
[1733880587103,29.84780404,212.74,212.63,1.3628]
[1733880587305,2.3497,212.65,212.61,1.3911]
[1733880587809,29.84780404,212.7,212.57,1.363]
[1733880588009,2.3497,212.65,212.57,9.45041326]
[1733880588210,29.84780404,212.7,212.57,7.09991326]
[1733880588505,2.3494,212.68,212.59,2.3503]
[1733880588807,29.84780404,212.7,212.57,7.09991326]
[1733880589709,29.84780404,212.7,212.53,2.867]
[1733880589710,29.84780404,212.66,212.44,29.84780404]
[1733880590006,29.84780404,212.58,212.45,5.22429493]
[1733880590199,29.84780404,212.58,212.47,5.71732582]
[1733880590200,2.3511,212.53,212.47,5.71732582]
[1733880590605,33.78780404,212.58,212.45,5.22429493]
[1733880591211,2.3512,212.52,212.45,2.8708]
[1733880591502,33.78780404,212.58,212.45,2.8708]
[1733880591906,2.351,212.54,212.46,2.3518]
[1733880592107,33.78780404,212.62,212.46,3.94]
[1733880592500,2.3506,212.57,212.46,3.94]
[1733880592699,33.78780404,212.62,212.46,3.94]
[1733880593105,3.94,212.62,212.46,3.94]
[1733880593498,2.3503,212.6,212.53,2.351]
[1733880593906,3.94,212.62,212.45,2.8708]
[1733880594099,3.94,212.61,212.45,6.8108]
[1733880594800,2.3509,212.54,212.47,2.3517]
[1733880594999,2.3509,212.54,212.45,6.8108]
[1733880595610,2.3508,212.56,212.51,2.3512]
[1733880596004,5.72691865,212.65,212.48,29.84780404]
[1733880596212,9.60691865,212.65,212.48,29.84780404]
[1733880596405,9.60691865,212.65,212.45,6.8108]
[1733880596406,29.84780404,212.62,212.45,6.8108]
[1733880597311,2.3508,212.56,212.49,2.3514]
[1733880597707,2.3508,212.56,212.45,6.8108]
[1733880597907,2.3508,212.56,212.5,2.3514]
[1733880598106,2.3505,212.58,212.45,6.8108]
[1733880598303,29.84780404,212.62,212.45,6.8108]
[1733880598508,29.84780404,212.62,212.53,2.351]
[1733880599410,29.84780404,212.66,212.52,3.88]
[1733880599604,3.88,212.68,212.53,5.323]
[1733880600007,3.88,212.68,212.57,2.3505]
[1733880600208,1.3883,212.69,212.53,5.323]
[1733880600414,29.84780404,212.75,212.56,29.84780404]
[1733880600613,29.84780404,212.75,212.57,1.3738]
[1733880600815,5.63483844,212.76,212.6,29.84780404]
[1733880601016,3.88,212.78,212.6,29.84780404]
[1733880601017,2.3487,212.74,212.68,2.3494]
[1733880601205,3.88,212.78,212.68,2.3494]
[1733880601412,1.3974,212.79,212.61,3.88]
[1733880601606,1.3974,212.79,212.62,3.88]
[1733880602418,1.3974,212.79,212.64,29.84780404]
[1733880602710,3.9815,212.83,212.64,29.84780404]
[1733880602915,0.1015,212.83,212.64,29.84780404]
[1733880603115,29.84780404,212.85,212.68,29.84780404]
[1733880603315,29.84780404,212.85,212.69,5.3131]
[1733880603516,29.84780404,212.85,212.69,6.6772]
[1733880604018,35.48573421,212.85,212.69,12.43977829]
[1733880604223,29.84780404,212.85,212.69,12.43977829]
[1733880604420,3.88,212.88,212.69,12.43977829]
[1733880604724,29.84780404,212.93,212.76,29.84780404]
[1733880605024,29.84780404,212.93,212.77,5.3421]
[1733880605220,0.75198571,212.92,212.77,5.3421]
[1733880605518,0.75198571,212.92,212.77,1.4621]
[1733880605725,29.84780404,212.85,212.73,2.3487]
[1733880605920,29.84780404,212.81,212.6,33.72780404]
[1733880606120,29.84780404,212.77,212.6,33.72780404]
[1733880606314,1.5235,212.84,212.6,33.72780404]
[1733880606315,3.88,212.78,212.6,33.72780404]
[1733880606515,33.72780404,212.81,212.6,33.72780404]
[1733880606720,2.3486,212.76,212.68,2.3493]
[1733880606923,33.72780404,212.81,212.67,3.88]
[1733880607324,3.88,212.81,212.67,3.88]
[1733880607623,1.5235,212.84,212.67,3.88]
[1733880608025,2.3482,212.79,212.72,2.3489]
[1733880608218,1.4236,212.84,212.67,3.88]
[1733880608524,29.84780404,212.93,212.72,29.84780404]
[1733880608724,2.3473,212.87,212.81,2.3479]
[1733880608917,1.5901,212.95,212.73,4.3234]
[1733880608918,1.5901,212.95,212.77,3.88]
[1733880609119,2.3473,212.87,212.79,2.3481]
[1733880609420,18.64761371,212.93,212.77,3.88]
[1733880609626,2.3475,212.85,212.79,2.3481]
[1733880609822,2.3475,212.85,212.74,24.30382844]
[1733880609823,3.88,212.89,212.74,24.30382844]
[1733880610027,3.88,212.89,212.73,1.4074]
[1733880610028,18.64761371,212.85,212.73,1.4074]
[1733880610223,18.64761371,212.77,212.64,2.916]
[1733880610429,3.88,212.76,212.64,2.916]
[1733880610625,3.88,212.76,212.65,5.52225817]
[1733880610820,1.4902,212.83,212.66,18.64761371]
[1733880611124,5.67278833,212.87,212.7,18.64761371]
[1733880611427,3.88,212.88,212.74,18.64761371]
[1733880611619,0.75212448,212.87,212.74,22.52761371]
[1733880611821,3.88,212.88,212.75,1.3945]
[1733880612227,3.88,212.88,212.76,5.56905219]
[1733880612634,3.88,212.88,212.74,22.52761371]
[1733880612635,22.52761371,212.88,212.66,3.88]
[1733880612926,8.66184157,212.87,212.67,18.64761371]
[1733880613129,18.64761371,212.88,212.71,18.64761371]
[1733880613430,1.4902,212.89,212.71,18.64761371]
[1733880613620,24.35381858,212.96,212.75,18.64761371]
[1733880613621,18.64761371,212.96,212.75,18.64761371]
[1733880613821,30.02540277,212.95,212.79,18.64761371]
[1733880614024,9.40994374,212.94,212.8,2.7991]
[1733880614229,0.75208232,212.93,212.8,2.7991]
[1733880614427,1.4625,212.98,212.83,18.64761371]
[1733880614627,1.4625,212.98,212.84,3.88]
[1733880615025,1.4625,212.98,212.83,18.64761371]
[1733880615221,2.3465,212.95,212.86,2.3473]
[1733880615429,2.3465,212.95,212.85,5.64164683]
[1733880615430,1.4625,212.98,212.85,5.64164683]
[1733880615631,1.4625,212.98,212.8,2.7991]
[1733880615825,1.4625,212.98,212.8,6.6791]
[1733880616033,18.64761371,212.95,212.8,2.7991]
[1733880616327,18.64761371,212.91,212.77,3.88]
[1733880616524,0.75190359,212.9,212.77,3.88]
[1733880616730,0.75190359,212.9,212.78,5.60547135]
[1733880616928,3.9803,212.94,212.78,5.60547135]
[1733880617233,4.63207674,212.93,212.78,5.60547135]
[1733880617425,4.63207674,212.93,212.78,7.01297135]
[1733880617627,3.88,212.93,212.78,7.01297135]
[1733880617826,0.75199414,212.92,212.78,7.01297135]
[1733880618024,0.75201832,212.91,212.78,7.01297135]
[1733880618230,3.88,212.93,212.78,7.01297135]
[1733880619326,2.347,212.9,212.78,7.01297135]
[1733880619530,3.88,212.93,212.78,7.01297135]
[1733880619730,1.4625,212.98,212.79,18.64761371]
[1733880619926,1.4625,212.98,212.83,18.64761371]
[1733880620132,22.52761371,213.03,212.87,18.64761371]
[1733880620335,22.52761371,213.03,212.94,2.3465]
[1733880620336,2.3459,213.0,212.94,2.3465]
[1733880620629,3.88,213.03,212.88,2.8616]
[1733880620830,22.52761371,213.03,212.88,2.8616]
[1733880621033,22.52761371,213.03,212.81,3.88]
[1733880621034,18.64761371,212.99,212.81,3.88]
[1733880621226,31.67630244,212.98,212.81,3.88]
[1733880621432,32.42804516,212.98,212.81,3.88]
[1733880621627,32.42804516,212.98,212.78,7.01297135]
[1733880621628,30.28900244,212.94,212.78,7.01297135]
[1733880621833,30.28900244,212.9,212.78,7.01297135]
[1733880622632,30.28900244,212.9,212.71,34.16900244]
[1733880623235,0.75215565,212.89,212.71,34.16900244]
[1733880623536,0.75215565,212.89,212.74,5.7356033]
[1733880623741,3.88,212.92,212.75,30.28900244]
[1733880624137,0.752038,212.91,212.75,30.28900244]
[1733880624436,30.38930244,213.0,212.79,30.28900244]
[1733880624637,0.75186072,212.97,212.8,8.1806]
[1733880624839,5.56815277,212.96,212.8,8.1806]
[1733880625039,0.75186072,212.95,212.8,8.1806]
[1733880625241,2.3474,212.86,212.8,10.5285]
[1733880625738,35.85715521,212.96,212.74,5.7356033]
[1733880625739,3.82,212.9,212.74,5.7356033]
[1733880626039,35.85715521,212.96,212.74,5.7356033]
[1733880626040,30.28900244,212.88,212.74,5.7356033]
[1733880626247,2.3479,212.81,212.74,8.0842033]
[1733880626545,5.3119,212.87,212.64,1.3953]
[1733880626741,2.3483,212.78,212.72,2.3489]
[1733880626944,30.28900244,212.84,212.72,2.3489]
[1733880627144,0.1003,212.86,212.65,3.82]
[1733880627448,0.1003,212.86,212.72,5.56255545]
[1733880628239,1.4919,212.87,212.72,5.56255545]
[1733880628443,30.28900244,212.92,212.73,34.10900244]
[1733880628646,4.57204515,212.91,212.73,36.93020244]
[1733880628945,0.75204515,212.91,212.77,30.28900244]
[1733880629143,3.82,212.97,212.81,30.28900244]
[1733880629339,3.82,212.97,212.82,3.82]
[1733880629546,3.82,213.01,212.85,30.28900244]
[1733880629749,5.3069,213.01,212.89,30.28900244]
[1733880629942,2.3456,213.03,212.9,1.3991]
[1733880630146,0.75167087,213.0,212.93,30.28900244]
[1733880630341,3.82,213.09,212.93,30.28900244]
[1733880630342,5.287,213.09,212.93,30.28900244]
[1733880630644,5.62324652,213.07,212.93,30.28900244]
[1733880631044,2.3456,213.03,212.96,2.3463]
[1733880631243,0.75148444,213.06,212.93,30.28900244]
[1733880631445,5.62324652,213.07,212.93,30.28900244]
[1733880631642,0.7514858,213.06,212.95,2.3464]
[1733880631847,0.7514858,213.06,212.93,30.28900244]
[1733880632049,0.7514858,213.06,212.91,3.82]
[1733880632447,30.28900244,213.04,212.86,2.8926]
[1733880632749,30.28900244,213.0,212.86,2.8926]
[1733880632952,4.5714858,212.99,212.86,2.8926]
[1733880633355,0.7514858,212.98,212.86,1.502]
[1733880633549,30.28900244,212.96,212.76,1.364]
[1733880633749,0.7514858,212.95,212.76,1.364]
[1733880634051,0.7514858,212.95,212.76,2.7642]
[1733880634349,0.7514858,212.95,212.79,2.3482]
[1733880634550,0.75196561,212.94,212.8,5.63210242]
[1733880634852,2.3469,212.91,212.82,2.3478]
[1733880635155,30.28900244,212.96,212.82,2.3478]
[1733880635348,0.75191293,212.95,212.8,5.63210242]
[1733880635655,0.75191293,212.95,212.82,30.28900244]
[1733880635848,193.1623953,213.05,212.8,5.63210242]
[1733880635849,3.82,213.05,212.87,30.28900244]
[1733880636053,2.3456,213.02,212.95,2.3464]
[1733880636249,0.7516858,213.01,212.93,3.82]
[1733880636556,3.82,213.1,212.93,3.82]
[1733880636753,0.75145671,213.09,212.93,3.82]
[1733880636953,6.30030526,213.08,212.93,3.82]
[1733880637147,34.10900244,213.12,212.95,30.28900244]
[1733880637352,0.75130683,213.11,212.95,30.28900244]
[1733880637747,0.75122823,213.1,212.95,30.28900244]
[1733880638052,2.3448,213.1,213.03,2.3455]
[1733880638250,3.82,213.13,213.0,2.9319]
[1733880638452,0.75124299,213.12,213.0,2.9319]
[1733880638656,30.28900244,213.18,213.0,6.7519]
[1733880638953,0.75109664,213.17,213.03,30.28900244]
[1733880639151,30.28900244,213.22,213.03,30.28900244]
[1733880639356,0.75094077,213.21,213.03,30.28900244]
[1733880639551,0.75094077,213.21,213.09,2.3448]
[1733880639857,4.57082652,213.2,213.09,3.82]
[1733880640059,2.344,213.17,213.09,3.82]
[1733880640254,3.82,213.2,213.09,3.82]
[1733880641152,2.344,213.17,213.09,3.82]
[1733880641355,30.28900244,213.18,213.05,5.64807659]
[1733880641552,0.75100145,213.17,213.05,5.64807659]
[1733880641754,0.75100145,213.17,213.02,1.4001]
[1733880641955,30.28900244,213.14,213.02,1.4001]
[1733880642156,4.57100145,213.13,213.01,1.4386]
[1733880642356,4.57100145,213.13,212.96,7.6553]
[1733880642564,0.75100145,213.12,212.96,5.3091]
[1733880642855,2.3454,213.04,212.97,2.3462]
[1733880643055,30.28900244,213.1,212.96,5.3091]
[1733880643359,0.75136424,213.09,212.96,1.4891]
[1733880643550,2.3453,213.06,212.96,1.4891]
[1733880643754,3.82,213.06,212.96,1.4891]
[1733880643951,3.82,213.12,212.96,1.4891]
[1733880644155,1.4318,213.16,213.03,30.28900244]
[1733880644357,3.82,213.18,213.04,1.4544]
[1733880644559,3.82,213.18,213.04,2.9466]
[1733880644756,2.344,213.17,213.1,2.3447]
[1733880644953,9.37853186,213.22,213.07,30.28900244]
[1733880645153,9.37853186,213.22,213.08,1.392]
[1733880645154,3.82,213.22,213.08,1.392]
[1733880645355,2.344,213.18,213.09,2.3447]
[1733880645558,0.75086117,213.21,213.08,1.392]
[1733880645761,0.75089115,213.2,213.08,1.392]
[1733880645963,0.75089115,213.21,213.08,1.392]
[1733880646263,0.75089121,213.2,213.08,1.392]
[1733880646463,35.85616271,213.23,213.08,1.392]
[1733880646664,4.57088429,213.22,213.08,1.392]
[1733880646858,3.82,213.22,213.08,1.392]
[1733880647059,2.3441,213.16,213.08,3.7369]
[1733880647261,3.82,213.22,213.08,1.392]
[1733880647562,3.82,213.22,213.1,8.11561215]
[1733880647563,2.344,213.17,213.1,8.11561215]
[1733880647858,3.82,213.23,213.1,5.77091215]
[1733880648059,1.4318,213.25,213.11,30.28900244]
[1733880648261,3.82,213.25,213.11,30.28900244]
[1733880648462,0.16644,213.26,213.11,30.28900244]
[1733880648661,0.16644,213.26,213.15,30.28900244]
[1733880648856,0.16644,213.26,213.19,2.3437]
[1733880649057,0.16644,213.26,213.16,6.6397]
[1733880649466,0.16644,213.26,213.2,2.3436]
[1733880649660,0.16644,213.26,213.16,6.6397]
[1733880650067,3.82,213.25,213.1,5.77091215]
[1733880650465,2.3442,213.15,213.1,5.77091215]
[1733880650761,3.82,213.25,213.1,5.77091215]
[1733880650963,8.60686532,213.24,213.1,5.77091215]
[1733880651263,3.82,213.25,213.1,5.77091215]
[1733880651264,8.60687869,213.23,213.1,5.77091215]
[1733880651458,3.82,213.25,213.1,5.77091215]
[1733880651862,8.60713056,213.24,213.1,5.77091215]
[1733880652068,8.60713056,213.23,213.1,5.77091215]
[1733880652370,3.82,213.25,213.1,5.77091215]
[1733880652371,1.50167822,213.24,213.1,5.77091215]
[1733880652563,0.75083191,213.24,213.1,5.77091215]
[1733880652765,0.75083191,213.24,213.08,2.7888]
[1733880652766,38.89559721,213.23,213.08,2.7888]
[1733880652964,30.28900244,213.19,213.08,1.3968]
[1733880653164,3.82,213.18,213.02,1.4229]
[1733880653359,30.28900244,213.15,213.02,1.4229]
[1733880653563,9.36252586,213.14,212.98,1.4853]
[1733880653765,9.36252586,213.13,212.98,1.4853]
[1733880653970,30.28900244,213.15,213.01,5.59300248]
[1733880654167,2.345,213.08,213.01,5.59300248]
[1733880654364,30.28900244,213.15,213.01,5.59300248]
[1733880654969,2.345,213.08,213.01,5.59300248]
[1733880655265,3.62,213.14,213.01,5.59300248]
[1733880655465,3.62,213.15,213.03,30.28900244]
[1733880655666,79.08900244,213.23,213.04,3.62]
[1733880655868,3.62,213.22,213.07,30.28900244]
[1733880656073,3.62,213.22,213.08,2.9019]
[1733880656471,2.3443,213.14,213.08,2.9019]
[1733880656670,3.62,213.16,213.08,1.4922]
[1733880656872,3.62,213.16,213.04,3.62]
[1733880657468,2.3444,213.13,213.04,3.62]
[1733880657771,3.62,213.16,213.04,3.62]
[1733880658564,3.62,213.16,213.07,30.28900244]
[1733880659268,3.62,213.16,213.07,32.63400244]
[1733880659472,3.62,213.16,213.07,30.28900244]
[1733880659876,2.3444,213.14,213.08,2.3449]
[1733880660073,3.62,213.16,213.07,30.28900244]
[1733880660467,30.28900244,213.29,213.07,30.28900244]
[1733880660670,0.75084776,213.28,213.11,30.28900244]
[1733880660871,5.52508937,213.29,213.12,1.3587]
[1733880661172,4.37070207,213.28,213.15,30.28900244]
[1733880661369,4.37070207,213.28,213.12,2.7172]
[1733880661573,2.344,213.17,213.12,8.3549084]
[1733880661776,3.62,213.22,213.12,8.3549084]
[1733880662667,3.62,213.26,213.12,38.64391084]
[1733880663169,0.7506249,213.25,213.12,8.3549084]
[1733880663374,31.03962734,213.25,213.12,2.7172]
[1733880663678,0.7506249,213.24,213.12,1.3587]
[1733880663878,0.75079197,213.24,213.12,1.3587]
[1733880664068,0.75079197,213.24,213.07,30.28900244]
[1733880664268,0.75079197,213.24,213.04,1.4235]
[1733880664269,30.28900244,213.21,213.04,1.4235]
[1733880664474,30.28900244,213.17,213.04,1.4235]
[1733880664672,0.75079197,213.16,213.04,1.4235]
[1733880665274,0.75079197,213.19,213.04,1.4235]
[1733880665573,2.3443,213.14,213.04,1.4235]
[1733880665769,3.62,213.13,213.04,1.4235]
[1733880666168,3.62,213.13,213.04,3.7689]
[1733880666370,3.62,213.13,213.04,1.4235]
[1733880667267,5.60437534,213.19,213.04,3.7689]
[1733880667268,2.3448,213.1,213.04,3.7689]
[1733880667469,0.0967,213.23,213.07,30.28900244]
[1733880667673,0.75090343,213.22,213.08,3.62]
[1733880667880,0.75085612,213.22,213.08,3.62]
[1733880668077,0.75085612,213.21,213.08,3.62]
[1733880668376,0.75085612,213.21,213.04,3.7689]
[1733880668377,0.75085612,213.2,213.04,3.7689]
[1733880668672,0.75085612,213.2,213.04,1.4235]
[1733880668879,2.3447,213.11,213.04,1.4235]
[1733880669068,3.62,213.15,213.04,1.4235]
[1733880670075,2.3446,213.11,213.05,2.3452]
[1733880670573,30.28900244,213.21,213.06,2.3451]
[1733880670574,2.3444,213.13,213.06,2.3451]
[1733880670773,2.3444,213.13,213.04,1.4235]
[1733880670974,30.28900244,213.21,213.04,1.4235]
[1733880671179,2.3438,213.19,213.07,30.28900244]
[1733880671382,2.3438,213.19,213.08,3.62]
[1733880671575,3.62,213.24,213.08,3.62]
[1733880671773,0.75072227,213.23,213.08,3.62]
[1733880672375,219.35248175,213.28,213.11,30.28900244]
[1733880672585,9.39955091,213.27,213.15,30.28900244]
[1733880672778,0.75080609,213.26,213.16,4.2765]
[1733880672976,30.48825244,213.33,213.16,4.2765]
[1733880673179,3.62,213.31,213.16,4.2765]
[1733880673374,3.62,213.31,213.2,2.3435]
[1733880673375,2.3429,213.27,213.2,2.3435]
[1733880673579,3.62,213.31,213.16,4.2765]
[1733880673884,2.3432,213.25,213.18,2.3438]
[1733880674083,0.75053566,213.3,213.16,4.2765]
[1733880674579,0.75053566,213.3,213.19,2.3437]
[1733880675172,30.28900244,213.29,213.16,4.2765]
[1733880675572,2.3431,213.26,213.16,4.2765]
[1733880675778,30.28900244,213.29,213.16,4.2765]
[1733880676079,0.75059121,213.28,213.16,4.2765]
[1733880676280,2.3435,213.21,213.16,4.2765]
[1733880676681,30.28900244,213.29,213.16,4.2765]
[1733880676881,0.75059314,213.28,213.16,4.2765]
[1733880677378,3.62,213.31,213.16,4.2765]
[1733880677577,9.40968185,213.3,213.16,4.2765]
[1733880677784,0.19925,213.33,213.19,30.28900244]
[1733880677983,0.19925,213.33,213.2,3.62]
[1733880678179,2.54155,213.33,213.25,2.343]
[1733880678484,2.54155,213.33,213.23,30.28900244]
[1733880678485,0.19925,213.33,213.23,30.28900244]
[1733880678882,2.54155,213.33,213.25,2.3431]
[1733880679185,0.19925,213.33,213.23,30.28900244]
[1733880679785,30.28900244,213.45,213.23,30.28900244]
[1733880679980,2.3418,213.38,213.31,2.3424]
[1733880680284,33.90900244,213.45,213.32,1.4835]
[1733880680486,2.3418,213.37,213.32,1.4835]
[1733880680682,33.90900244,213.45,213.32,1.4835]
[1733880680880,1.4694,213.48,213.32,1.4835]
[1733880680881,2.3411,213.43,213.32,1.4835]
[1733880681082,3.62,213.51,213.32,1.4835]
[1733880681279,30.08853458,213.5,213.35,30.28900244]
[1733880681577,3.62,213.51,213.36,3.62]
[1733880681578,9.4224693,213.49,213.36,3.62]
[1733880681781,30.28900244,213.45,213.32,1.4835]
[1733880682077,30.28900244,213.41,213.28,1.4005]
[1733880682278,9.42256248,213.4,213.28,1.4005]
[1733880682589,30.28900244,213.37,213.25,1.4727]
[1733880682889,30.28900244,213.37,213.01,19.29359949]
[1733880682890,30.28900244,213.33,213.13,33.90900244]
[1733880683093,20.58038801,213.32,213.13,33.90900244]
[1733880683283,8.67261697,213.31,213.17,5.53643607]
[1733880683489,0.74994551,213.31,213.17,5.53643607]
[1733880683786,2.343,213.27,213.17,5.53643607]
[1733880683985,3.62,213.27,213.17,5.53643607]
[1733880684195,30.07748586,213.26,213.09,2.9347]
[1733880684495,60.3664883,213.25,213.09,2.9347]
[1733880684692,29.32680082,213.24,213.12,5.70175318]
[1733880684890,31.03968748,213.25,213.12,5.70175318]
[1733880684891,2.3437,213.2,213.12,5.70175318]
[1733880685097,0.2007,213.29,213.12,5.70175318]
[1733880685098,3.54,213.28,213.12,5.70175318]
[1733880685287,3.54,213.28,213.13,3.54]
[1733880685288,21.33164624,213.27,213.13,3.54]
[1733880685486,21.40318932,213.26,213.13,3.54]
[1733880685689,30.07233754,213.25,213.13,3.54]
[1733880685992,3.54,213.28,213.18,2.3438]
[1733880686190,3.54,213.28,213.13,3.54]
[1733880686396,2.3426,213.3,213.21,2.3435]
[1733880686588,3.54,213.32,213.22,1.3711]
[1733880687492,3.54,213.32,213.23,2.7949]
[1733880687693,1.4019,213.39,213.23,2.7949]
[1733880687897,2.3421,213.34,213.26,2.3429]
[1733880688095,3.54,213.4,213.24,3.54]
[1733880688394,2.3422,213.33,213.25,2.3431]
[1733880688894,2.3422,213.33,213.26,2.343]
[1733880689099,2.3422,213.33,213.24,3.54]
[1733880689489,2.3421,213.34,213.26,2.3429]
[1733880689792,3.54,213.4,213.24,3.54]
[1733880689988,30.07042112,213.39,213.24,3.54]
[1733880690187,30.28900244,213.37,213.23,1.4397]
[1733880690496,30.28900244,213.33,213.13,1.4232]
[1733880690696,2.3436,213.21,213.13,6.6292]
[1733880690895,2.3436,213.21,213.13,4.2848]
[1733880691397,3.54,213.32,213.18,5.7518385]
[1733880691595,30.28900244,213.29,213.13,4.2848]
[1733880691797,30.07776002,213.28,213.13,4.2848]
[1733880692001,30.07776002,213.27,213.13,4.2848]
[1733880692195,24.87546521,213.26,213.17,5.5199413]
[1733880692495,2.3435,213.21,213.17,5.5199413]
[1733880692691,2.3435,213.21,213.13,4.2848]
[1733880692692,3.54,213.26,213.13,4.2848]
[1733880692892,9.42292776,213.25,213.13,4.2848]
[1733880693094,9.42292776,213.24,213.13,4.2848]
[1733880693292,9.42292776,213.24,212.89,4.6939]
[1733880693293,2.3447,213.11,213.04,30.28900244]
[1733880693495,3.54,213.17,213.07,5.54808416]
[1733880693693,33.82900244,213.17,213.02,1.3881]
[1733880693898,2.3445,213.13,213.02,1.3881]
[1733880694093,0.75096022,213.12,213.03,5.57453846]
[1733880694296,4.29096022,213.11,213.01,1.4886]
[1733880694496,4.29096022,213.11,213.02,1.429]
[1733880694892,0.75096022,213.1,213.02,1.429]
[1733880695498,2.3449,213.09,213.02,1.429]
[1733880695802,1.3851,213.16,213.02,1.429]
[1733880695998,0.75113445,213.09,213.03,1.4349]
[1733880696199,2.3444,213.13,213.05,2.3452]
[1733880696501,3.54,213.15,213.03,1.4349]
[1733880696896,3.54,213.15,213.04,30.28900244]
[1733880697093,30.49200244,213.26,213.08,30.28900244]
[1733880697292,32.85051386,213.25,213.08,30.28900244]
[1733880697491,2.3434,213.23,213.15,2.3442]
[1733880697699,0.74513144,213.22,213.12,33.82900244]
[1733880697899,0.74513144,213.24,213.12,33.82900244]
[1733880698099,0.74513144,213.21,213.12,33.82900244]
[1733880698500,5.51202716,213.28,213.12,33.82900244]
[1733880698797,32.85117243,213.27,213.12,33.82900244]
[1733880699107,21.31861725,213.26,213.12,33.82900244]
[1733880699398,30.28900244,213.18,213.03,3.54]
[1733880699595,4.2849113,213.17,213.03,3.54]
[1733880699792,2.3447,213.11,213.06,5.62403506]
[1733880699993,3.54,213.17,213.06,5.62403506]
[1733880700192,0.74513574,213.16,213.06,5.62403506]
[1733880701103,0.74513574,213.16,213.02,1.429]
[1733880701400,30.28900244,213.14,212.96,30.28900244]
[1733880701603,2.3456,213.03,212.92,33.82900244]
[1733880702003,2.3454,213.05,212.96,2.3463]
[1733880702202,0.74555283,213.04,212.92,33.82900244]
[1733880702401,3.54,213.08,212.92,33.82900244]
[1733880702598,0.74553171,213.07,213.0,5.72355796]
[1733880703305,3.54,213.08,213.0,5.72355796]
[1733880703604,3.54,213.08,212.92,33.82900244]
[1733880703605,0.74553139,213.07,212.92,33.82900244]
[1733880703804,0.74553139,213.07,212.93,1.3872]
[1733880704197,0.74553139,213.06,212.98,5.72989586]
[1733880704404,3.54,213.09,212.99,1.4602]
[1733880704601,2.3453,213.05,212.99,1.4602]
[1733880704797,3.54,213.09,212.99,1.4602]
[1733880705104,0.74549835,213.08,212.99,1.4602]
[1733880705305,3.54,213.09,212.99,1.4602]
[1733880705306,2.3454,213.04,212.99,1.4602]
[1733880705600,3.54,213.09,212.93,4.9272]
[1733880705801,0.74561467,213.08,212.93,4.9272]
[1733880706201,2.3456,213.02,212.97,5.63018182]
[1733880706602,2.3456,213.02,212.93,4.9272]
[1733880706603,3.54,213.09,212.93,1.3872]
[1733880706803,30.28900244,213.06,212.9,1.4583]
[1733880706999,1.70054164,213.05,212.91,5.77158422]
[1733880707200,0.74574164,213.04,212.91,5.77158422]
[1733880707503,3.54,213.03,212.91,5.77158422]
[1733880707895,2.3461,212.98,212.91,5.77158422]
[1733880708099,3.54,213.03,212.91,5.77158422]
[1733880708695,0.74570562,213.02,212.91,5.77158422]
[1733880708898,30.28900244,212.99,212.8,30.28900244]
[1733880709100,30.28900244,212.95,212.81,3.8435]
[1733880709307,2.16480562,213.02,212.81,3.8435]
[1733880709308,3.54,212.94,212.81,1.4956]
[1733880709506,5.8864,212.96,212.87,2.3473]
[1733880709809,30.28900244,212.99,212.86,5.55576996]
[1733880710103,3.54,213.0,212.93,2.3466]
[1733880710498,3.54,213.0,212.89,2.87]
[1733880710702,2.346,212.99,212.91,2.3467]
[1733880712207,0.74570562,213.02,212.92,30.28900244]